fUSD/lending_fUSD_20250110
["ID","MTS","AMOUNT","RATE_DAILY","PERIOD"]
[348445978,1736531456203,-500.0,0.00010103,2]
[348445979,1736531456213,-2712.8,0.00010103,2]
[348445980,1736531456223,-603.85,0.00010103,2]
[348445981,1736531456233,-522.58,0.00010103,2]
[348445982,1736531456243,-500.0,0.00010103,2]
[348445983,1736531456253,-605.23,0.00010103,2]
[348445984,1736531456262,-593.11,0.00010103,2]
[348445985,1736531456272,-1225.03,0.00010103,2]
[348445986,1736531456283,-500.0,0.00010103,2]
[348445987,1736531456292,-500.0,0.00010103,2]
[348445988,1736531456302,-500.0,0.00010103,2]
[348445989,1736531456312,-500.0,0.00010103,2]
[348445990,1736531456322,-500.0,0.00010103,2]
[348445991,1736531456331,-2396.3,0.00010103,2]
[348445992,1736531456342,-500.0,0.00010103,2]
[348445993,1736531456353,-500.0,0.00010103,2]
[348445994,1736531456362,-500.0,0.00010103,2]
[348445995,1736531456371,-591.46317281,0.00010103,2]
[348445996,1736531456380,-500.0,0.00010103,2]
[348445997,1736531456390,-500.0,0.00010103,2]
[348445998,1736531456400,-500.0,0.00010103,2]
[348445999,1736531456410,-500.0,0.00010103,2]
[348446000,1736531456420,-500.0,0.00010103,2]
[348446001,1736531456429,-572.45,0.00010103,2]
[348446002,1736531456439,-500.0,0.00010103,2]
[348446003,1736531456449,-500.0,0.00010103,2]
[348446004,1736531456459,-553.52,0.00010103,2]
[348446005,1736531456469,-500.0,0.00010103,2]
[348446006,1736531456481,-500.0,0.00010103,2]
[348446007,1736531456491,-585.79,0.00010103,2]
[348446008,1736531456501,-500.0,0.00010103,2]
[348446009,1736531456510,-611.73,0.00010103,2]
[348446010,1736531456521,-511.46,0.00010103,2]
[348446011,1736531456530,-792.49,0.00010104,2]
[348446012,1736531456540,-500.0,0.00010104,2]
[348446013,1736531456550,-935.25,0.00010104,2]
[348446014,1736531456559,-1166.4,0.00010104,2]
[348446015,1736531456569,-893.81,0.00010104,2]
[348446016,1736531456579,-2578.37,0.00010104,2]
[348446017,1736531456589,-1034.11,0.00010104,2]
[348446018,1736531456598,-1857.48,0.00010104,2]
[348446019,1736531456608,-1017.39,0.00010104,2]
[348446020,1736531456618,-888.36,0.00010104,2]
[348446021,1736531456627,-829.55,0.00010104,2]
[348446022,1736531456637,-1537.53,0.00010104,2]
[348446023,1736531456647,-504.82,0.00010104,2]
[348446024,1736531456657,-830.64,0.00010104,2]
[348446025,1736531456667,-686.51,0.00010104,2]
[348446026,1736531456678,-500.0,0.00010104,2]
[348446027,1736531456688,-604.02,0.00010104,2]
[348446028,1736531456698,-538.66,0.00010104,2]
[348446029,1736531456709,-1560.83,0.00010104,2]
[348446030,1736531456720,-500.0,0.00010104,2]
[348446031,1736531456731,-596.27652603,0.00010104,2]
[348446032,1736531456741,-500.0,0.00010104,2]
[348446033,1736531456751,-665.9,0.00010104,2]
[348446034,1736531456761,-1075.58,0.00010104,2]
[348446035,1736531456772,-500.0,0.00010104,2]
[348446036,1736531456782,-679.57,0.00010104,2]
[348446037,1736531456793,-500.0,0.00010104,2]
[348446038,1736531456803,-944.23,0.00010104,2]
[348446039,1736531456814,-500.0,0.00010104,2]
[348446040,1736531456825,-581.83,0.00010104,2]
[348446041,1736531456836,-782.79,0.00010104,2]
[348446042,1736531456846,-1006.56,0.00010104,2]
[348446043,1736531456857,-888.62,0.00010104,2]
[348446044,1736531456867,-626.67,0.00010104,2]
[348446045,1736531456877,-1744.5,0.00010104,2]
[348446046,1736531456887,-500.0,0.00010104,2]
[348446047,1736531456897,-3149.53,0.00010104,2]
[348446048,1736531456907,-1527.67,0.00010104,2]
[348446049,1736531456921,-562.15,0.00010105,2]
[348446050,1736531456931,-540.09,0.00010105,2]
[348446051,1736531456941,-2630.9,0.00010105,2]
[348446052,1736531456950,-774.78505,0.00010105,2]
[348446053,1736531456960,-734.386738,0.00010105,2]
[348446054,1736531456970,-656.91,0.00010105,2]
[348446055,1736531456982,-500.0,0.00010105,2]
[348446056,1736531456992,-500.0,0.00010105,2]
[348446057,1736531457002,-2028.15,0.00010105,2]
[348446058,1736531457012,-698.98,0.00010105,2]
[348446059,1736531457023,-500.0,0.00010105,2]
[348446060,1736531457263,-1229.36,0.00010105,2]
[348446061,1736531457274,-1178.14,0.00010105,2]
[348446062,1736531457283,-802.57,0.00010105,2]
[348446063,1736531457293,-500.0,0.00010124,2]
[348446064,1736531457303,-234.60511836,0.00010129,2]
[348446065,1736531457313,-3000.0,0.0001013,2]
[348446066,1736531457323,-615.5,0.00010137,2]
[348446067,1736531457333,-151.26,0.00010137,2]
[348446068,1736531457343,-150.0,0.00010198,2]
[348446069,1736531457353,-200.0,0.00010201,2]
[348446070,1736531457363,-2000.0,0.00010201,2]
[348446071,1736531457373,-200.0,0.00010201,2]
[348446072,1736531457383,-3000.0,0.0001021,2]
[348446073,1736531457393,-227.24974175,0.00010221,2]
[348446074,1736531457403,-234.60511836,0.00010222,2]
[348446075,1736531457413,-150.0,0.00010229,2]
[348446076,1736531457423,-150.0,0.00010251,2]
[348446077,1736531457433,-170.96,0.00010274,2]
[348446078,1736531457443,-3000.0,0.0001029,2]
[348446079,1736531457452,-1546.35315927,0.00010296,2]
[348446080,1736531457462,-200.0,0.00010303,2]
[348446081,1736531457473,-1065.45681232,0.00010303,2]
[348446082,1736531457483,-200.0,0.00010303,2]
[348446083,1736531457493,-150.0,0.0001031,2]
[348446084,1736531457503,-234.60511836,0.00010315,2]
[348446085,1736531457513,-1000.0,0.00010325,2]
[348446086,1736531457523,-418.5,0.00010343,2]
[348446087,1736531457532,-227.24974175,0.00010348,2]
[348446088,1736531457542,-150.0,0.00010349,2]
[348446089,1736531457552,-500.0,0.00010375,2]
[348446090,1736531457561,-544.62,0.00010375,2]
[348446091,1736531457571,-500.0,0.00010375,2]
[348446092,1736531457581,-685.51,0.00010375,2]
[348446093,1736531457591,-580.3,0.00010375,2]
[348446094,1736531457600,-1378.74,0.00010375,2]
[348446095,1736531457610,-500.0,0.00010375,2]
[348446096,1736531457619,-500.0,0.00010375,2]
[348446097,1736531457630,-1693.77,0.00010375,2]
[348446098,1736531457639,-1796.24,0.00010375,2]
[348446099,1736531457649,-2037.91,0.00010375,2]
[348446100,1736531457659,-1284.62,0.00010375,2]
[348446101,1736531457669,-561.44,0.00010375,2]
[348446102,1736531457679,-538.05,0.00010375,2]
[348446103,1736531457688,-765.06,0.00010375,2]
[348446104,1736531457698,-454.86671615,0.00010375,2]
[348446105,1736531457709,-907.28,0.00010375,2]
[348446106,1736531457720,-500.0,0.00010375,2]
[348446107,1736531457732,-2002.94,0.00010375,2]
[348446108,1736531457742,-642.17,0.00010375,2]
[348446109,1736531457752,-870.31,0.00010375,2]
[348446110,1736531457762,-834.05,0.00010375,2]
[348446111,1736531457771,-500.0,0.00010375,2]
[348446112,1736531457781,-512.32,0.00010375,2]
[348446113,1736531457790,-500.0,0.00010375,2]
[348446114,1736531457801,-513.36,0.00010376,2]
[348446115,1736531457811,-500.0,0.00010376,2]
[348446116,1736531457821,-500.0,0.00010376,2]
[348446117,1736531457831,-500.0,0.00010376,2]
[348446118,1736531457841,-500.0,0.00010376,2]
[348446119,1736531457850,-500.0,0.00010376,2]
[348446120,1736531457860,-500.0,0.00010376,2]
[348446121,1736531457870,-506.41,0.00010376,2]
[348446122,1736531457881,-500.0,0.00010376,2]
[348446123,1736531457891,-500.0,0.00010376,2]
[348446124,1736531457901,-500.0,0.00010376,2]
[348446125,1736531457911,-560.88,0.00010376,2]
[348446126,1736531457925,-500.0,0.00010376,2]
[348446127,1736531457935,-652.27,0.00010376,2]
[348446128,1736531457945,-500.0,0.00010376,2]
[348446129,1736531457955,-610.26,0.00010376,2]
[348446130,1736531457966,-500.0,0.00010376,2]
[348446131,1736531457976,-500.0,0.00010376,2]
[348446132,1736531457987,-633.15,0.00010376,2]
[348446133,1736531457996,-500.0,0.00010376,2]
[348446134,1736531458006,-626.65,0.00010376,2]
[348446135,1736531458016,-511.06,0.00010376,2]
[348446136,1736531458026,-500.0,0.00010376,2]
[348446137,1736531458035,-500.0,0.00010376,2]
[348446138,1736531458045,-527.06,0.00010376,2]
[348446139,1736531458055,-500.0,0.00010376,2]
[348446140,1736531458064,-500.0,0.00010376,2]
[348446141,1736531458074,-500.0,0.00010376,2]
[348446142,1736531458083,-500.0,0.00010376,2]
[348446143,1736531458094,-500.0,0.00010376,2]
[348446144,1736531458104,-500.0,0.00010376,2]
[348446145,1736531458115,-500.0,0.00010376,2]
[348446146,1736531458125,-547.03,0.00010376,2]
[348446147,1736531458135,-737.71,0.00010376,2]
[348446148,1736531458145,-500.0,0.00010376,2]
[348446149,1736531458155,-500.0,0.00010376,2]
[348446150,1736531458165,-500.0,0.00010376,2]
[348446151,1736531458176,-500.0,0.00010376,2]
[348446152,1736531458186,-500.0,0.00010376,2]
[348446153,1736531458196,-1064.59,0.00010376,2]
[348446154,1736531458205,-540.23,0.00010376,2]
[348446155,1736531458215,-500.0,0.00010376,2]
[348446156,1736531458225,-523.12,0.00010376,2]
[348446157,1736531458235,-603.1,0.00010376,2]
[348446158,1736531458245,-500.0,0.00010376,2]
[348446159,1736531458254,-638.1,0.00010376,2]
[348446160,1736531458265,-672.58,0.00010376,2]
[348446161,1736531458275,-591.76,0.00010376,2]
[348446162,1736531458284,-551.48,0.00010376,2]
[348446163,1736531458294,-1835.95,0.00010376,2]
[348446164,1736531458304,-4517.54,0.00010376,2]
[348446165,1736531458314,-500.0,0.00010376,2]
[348446166,1736531458324,-500.0,0.00010376,2]
[348446167,1736531458334,-556.4,0.00010376,2]
[348446168,1736531458343,-588.18,0.00010376,2]
[348446169,1736531458353,-1590.45,0.00010376,2]
[348446170,1736531458364,-500.0,0.00010376,2]
[348446171,1736531458374,-931.53,0.00010376,2]
[348446172,1736531458384,-500.0,0.00010376,2]
[348446173,1736531458393,-599.07,0.00010376,2]
[348446174,1736531458403,-500.0,0.00010376,2]
[348446175,1736531458412,-1063.23,0.00010376,2]
[348446176,1736531458421,-1495.27,0.00010376,2]
[348446177,1736531458431,-2502.73,0.00010376,2]
[348446178,1736531458441,-500.0,0.00010376,2]
[348446179,1736531458451,-611.51446952,0.00010376,2]
[348446180,1736531458462,-500.0,0.00010376,2]
[348446181,1736531458472,-500.0,0.00010376,2]
[348446182,1736531458482,-2442.56,0.00010376,2]
[348446183,1736531458493,-500.0,0.00010376,2]
[348446184,1736531458503,-594.3,0.00010376,2]
[348446185,1736531458513,-731.27,0.00010376,2]
[348446186,1736531458523,-649.72,0.00010376,2]
[348446187,1736531458533,-500.0,0.00010376,2]
[348446188,1736531458543,-830.24,0.00010376,2]
[348446189,1736531458553,-500.0,0.00010376,2]
[348446190,1736531458563,-586.2,0.00010376,2]
[348446191,1736531458573,-500.0,0.00010376,2]
[348446192,1736531458583,-500.0,0.00010376,2]
[348446193,1736531458593,-579.52,0.00010376,2]
[348446194,1736531458604,-634.64,0.00010376,2]
[348446195,1736531458614,-1371.51,0.00010376,2]
[348446196,1736531458625,-2430.85,0.00010376,2]
[348446197,1736531458635,-500.0,0.00010376,2]
[348446198,1736531458645,-500.0,0.00010377,2]
[348446199,1736531458656,-500.0,0.00010377,2]
[348446200,1736531458665,-789.92,0.00010377,2]
[348446201,1736531458675,-500.0,0.00010377,2]
[348446202,1736531458684,-500.0,0.00010377,2]
[348446203,1736531458694,-500.0,0.00010377,2]
[348446204,1736531458704,-621.12,0.00010377,2]
[348446205,1736531458714,-500.0,0.00010377,2]
[348446206,1736531458725,-500.0,0.00010377,2]
[348446207,1736531458735,-500.0,0.00010377,2]
[348446208,1736531458745,-500.0,0.00010377,2]
[348446209,1736531458755,-568.64972122,0.00010377,2]
[348446210,1736531458765,-500.0,0.00010377,2]
[348446211,1736531458775,-500.0,0.00010377,2]
[348446212,1736531458785,-549.25,0.00010377,2]
[348446213,1736531458796,-500.0,0.00010377,2]
[348446214,1736531458806,-567.59,0.00010377,2]
[348446215,1736531458816,-500.0,0.00010377,2]
[348446216,1736531458826,-500.0,0.00010377,2]
[348446217,1736531458836,-500.0,0.00010377,2]
[348446218,1736531458847,-500.0,0.00010377,2]
[348446219,1736531458856,-500.0,0.00010377,2]
[348446220,1736531458866,-628.16,0.00010377,2]
[348446221,1736531458875,-500.0,0.00010377,2]
[348446222,1736531458886,-500.0,0.00010377,2]
[348446223,1736531458896,-500.0,0.00010377,2]
[348446224,1736531458906,-500.0,0.00010377,2]
[348446225,1736531458918,-500.0,0.00010377,2]
[348446226,1736531458930,-1078.6,0.00010377,2]
[348446227,1736531458939,-500.0,0.00010377,2]
[348446228,1736531458949,-500.0,0.00010377,2]
[348446229,1736531458959,-500.0,0.00010377,2]
[348446230,1736531458969,-500.0,0.00010377,2]
[348446231,1736531458979,-500.0,0.00010377,2]
[348446232,1736531458990,-2612.56,0.00010377,2]
[348446233,1736531459000,-500.0,0.00010377,2]
[348446234,1736531459010,-500.0,0.00010377,2]
[348446235,1736531459020,-500.0,0.00010377,2]
[348446236,1736531459029,-2712.8,0.00010377,2]
[348446237,1736531459039,-603.85,0.00010377,2]
[348446238,1736531459048,-522.58,0.00010377,2]
[348446239,1736531459058,-500.0,0.00010377,2]
[348446240,1736531459067,-605.23,0.00010377,2]
[348446241,1736531459077,-593.11,0.00010377,2]
[348446242,1736531459087,-1225.03,0.00010377,2]
[348446243,1736531459096,-172.62340039,0.00010377,2]
[348446244,1736531459106,-500.0,0.00010377,2]
[348446245,1736531459116,-500.0,0.00010377,2]
[348446246,1736531459125,-500.0,0.00010377,2]
[348446247,1736531459135,-2396.3,0.00010377,2]
[348446248,1736531459145,-500.0,0.00010377,2]
[348446249,1736531459155,-500.0,0.00010377,2]
[348446250,1736531459165,-500.0,0.00010377,2]
[348446251,1736531459175,-500.0,0.00010377,2]
[348446252,1736531459185,-150.0,0.00010377,2]
[348446253,1736531459194,-500.0,0.00010377,2]
[348446254,1736531459203,-500.0,0.00010377,2]
[348446255,1736531459214,-572.45,0.00010377,2]
[348446256,1736531459227,-500.0,0.00010377,2]
[348446257,1736531459236,-500.0,0.00010377,2]
[348446258,1736531459246,-553.52,0.00010377,2]
[348446259,1736531459255,-500.0,0.00010377,2]
[348446260,1736531459266,-321.0297248,0.00010377,2]
[348446261,1736531459277,-585.79,0.00010377,2]
[348446262,1736531459286,-500.0,0.00010377,2]
[348446263,1736531459296,-611.73,0.00010377,2]
[348446264,1736531459306,-511.46,0.00010377,2]
[348446265,1736531459317,-792.49,0.00010378,2]
[348446266,1736531459327,-935.25,0.00010378,2]
[348446267,1736531459337,-1166.4,0.00010378,2]
[348446268,1736531459347,-893.81,0.00010378,2]
[348446269,1736531459357,-2578.37,0.00010378,2]
[348446270,1736531459367,-1034.11,0.00010378,2]
[348446271,1736531459377,-1857.48,0.00010378,2]
[348446272,1736531459387,-1017.39,0.00010378,2]
[348446273,1736531459397,-888.36,0.00010378,2]
[348446274,1736531459408,-829.55,0.00010378,2]
[348446275,1736531459419,-1537.53,0.00010378,2]
[348446276,1736531459429,-504.82,0.00010378,2]
[348446277,1736531459439,-830.64,0.00010378,2]
[348446278,1736531459450,-686.51,0.00010378,2]
[348446279,1736531459461,-500.0,0.00010378,2]
[348446280,1736531459471,-604.02,0.00010378,2]
[348446281,1736531459483,-538.66,0.00010378,2]
[348446282,1736531459494,-1560.83,0.00010378,2]
[348446283,1736531459505,-500.0,0.00010378,2]
[348446284,1736531459515,-500.0,0.00010378,2]
[348446285,1736531459527,-665.9,0.00010378,2]
[348446286,1736531459536,-1075.58,0.00010378,2]
[348446287,1736531459548,-500.0,0.00010378,2]
[348446288,1736531459559,-679.57,0.00010378,2]
[348446289,1736531459571,-500.0,0.00010378,2]
[348446290,1736531459581,-944.23,0.00010378,2]
[348446291,1736531459591,-500.0,0.00010378,2]
[348446292,1736531459601,-581.83,0.00010378,2]
[348446293,1736531459610,-782.79,0.00010378,2]
[348446294,1736531459620,-1006.56,0.00010378,2]
[348446295,1736531459632,-626.67,0.00010378,2]
[348446296,1736531459641,-888.62,0.00010378,2]
[348446297,1736531459652,-1744.5,0.00010378,2]
[348446298,1736531459661,-500.0,0.00010378,2]
[348446299,1736531459672,-3149.53,0.00010378,2]
[348446300,1736531459693,-1527.67,0.00010378,2]
[348446301,1736531459706,-500.0,0.00010379,2]
[348446302,1736531459717,-562.15,0.00010379,2]
[348446303,1736531459729,-2630.9,0.00010379,2]
[348446304,1736531459740,-774.78505,0.00010379,2]
[348446305,1736531459751,-734.386738,0.00010379,2]
[348446306,1736531459761,-656.91,0.00010379,2]
[348446307,1736531459875,-500.0,0.00010379,2]
[348446308,1736531459885,-500.0,0.00010379,2]
[348446309,1736531459895,-2028.15,0.00010379,2]
[348446310,1736531459904,-698.98,0.00010379,2]
[348446311,1736531459914,-500.0,0.00010379,2]
[348446312,1736531459926,-1229.36,0.00010379,2]
[348446313,1736531459935,-169.330883,0.00010379,2]
[348446314,1736531459946,-1178.14,0.00010379,2]
[348446315,1736531459955,-802.57,0.00010379,2]
[348446316,1736531459966,-775.77,0.00010382,2]
[348446317,1736531459976,-437.72,0.00010384,2]
[348446318,1736531459985,-2015.0,0.00010394,2]
[348446319,1736531459994,-1267.0,0.00010394,2]
[348446320,1736531460005,-638.196,0.00010394,2]
[348446321,1736531460014,-151.802,0.00010394,2]
[348446322,1736531460023,-589.369,0.00010394,2]
[348446323,1736531460033,-1861.0,0.00010394,2]
[348446324,1736531460042,-917.0,0.00010394,2]
[348446325,1736531460052,-820.0,0.00010394,2]
[348446326,1736531460062,-1259.0,0.00010394,2]
[348446327,1736531460072,-2944.0,0.00010394,2]
[348446328,1736531460081,-537.0,0.00010394,2]
[348446329,1736531460090,-3977.0,0.00010394,2]
[348446330,1736531460100,-1173.0,0.00010394,2]
[348446331,1736531460110,-150.0,0.00010394,2]
[348446332,1736531460119,-3896.745,0.00010394,2]
[348446333,1736531460128,-1104.0,0.00010394,2]
[348446334,1736531460138,-150.0,0.00010396,2]
[348446335,1736531460147,-150.0,0.00010397,2]
[348446336,1736531460159,-200.0,0.00010406,2]
[348446337,1736531460174,-200.0,0.00010406,2]
[348446338,1736531460184,-150.0,0.00010407,2]
[348446339,1736531460194,-234.60511836,0.00010408,2]
[348446340,1736531460204,-1000.0,0.00010411,2]
[348446341,1736531460214,-1044.0,0.00010411,2]
[348446342,1736531460224,-150.0,0.00010426,2]
[348446343,1736531460235,-437.12,0.00010426,2]
[348446344,1736531460245,-437.12,0.00010426,2]
[348446345,1736531460255,-979.82,0.00010426,2]
[348446346,1736531460265,-150.0,0.00010426,2]
[348446347,1736531460275,-874.24,0.00010426,2]
[348446348,1736531460285,-150.0,0.00010426,2]
[348446349,1736531460295,-300.0,0.00010426,2]
[348446350,1736531460304,-150.0,0.00010426,2]
[348446351,1736531460314,-150.0,0.00010426,2]
[348446352,1736531460323,-150.0,0.00010426,2]
[348446353,1736531460332,-150.0,0.00010426,2]
[348446354,1736531460341,-416.52,0.00010426,2]
[348446355,1736531460351,-150.0,0.00010426,2]
[348446356,1736531460361,-150.0,0.00010426,2]
[348446357,1736531460370,-166.04,0.00010426,2]
[348446358,1736531460381,-454.76,0.00010426,2]
[348446359,1736531460390,-446.33,0.00010426,2]
[348446360,1736531460402,-150.0,0.00010426,2]
[348446361,1736531460412,-152.5,0.00010426,2]
[348446362,1736531460422,-150.0,0.00010426,2]
[348446363,1736531460432,-150.0,0.00010426,2]
[348446364,1736531460443,-150.0,0.00010426,2]
[348446365,1736531460452,-150.0,0.00010426,2]
[348446366,1736531460463,-150.0,0.00010431,2]
[348446367,1736531460473,-150.0,0.00010437,2]
[348446368,1736531460485,-150.0,0.00010447,2]
[348446369,1736531460495,-150.0,0.00010458,2]
[348446370,1736531460505,-227.24974175,0.00010476,2]
[348446371,1736531460515,-150.0,0.00010482,2]
[348446372,1736531460525,-29123.0,0.000105,2]
[348446373,1736531460537,-234.60511836,0.00010501,2]
[348446374,1736531460548,-1500.0,0.00010505,2]
[348446375,1736531460560,-150.0,0.00010506,2]
[348446376,1736531460572,-150.0,0.00010507,2]
[348446377,1736531460582,-150.0,0.00010508,2]
[348446378,1736531460592,-150.0,0.00010543,2]
[348446379,1736531460602,-540.09,0.00010549,2]
[348446380,1736531460612,-150.0,0.00010555,2]
[348446381,1736531460624,-150.0,0.00010562,2]
[348446382,1736531460634,-150.0,0.00010589,2]
[348446383,1736531460644,-234.60511836,0.00010594,2]
[348446384,1736531460654,-4700.0,0.000106,3]
[348446385,1736531460664,-227.24974175,0.00010603,2]
[348446386,1736531460673,-1567.79547049,0.00010629,2]
[348446387,1736531460688,-540.09,0.00010643,2]
[348446388,1736531460698,-7143.8466051,0.00010644,2]
[348446389,1736531460708,-500.0,0.00010649,2]
[348446390,1736531460719,-500.0,0.00010649,2]
[348446391,1736531460730,-685.51,0.00010649,2]
[348446392,1736531460741,-580.3,0.00010649,2]
[348446393,1736531460750,-1378.74,0.00010649,2]
[348446394,1736531460760,-500.0,0.00010649,2]
[348446395,1736531460770,-500.0,0.00010649,2]
[348446396,1736531460780,-1693.77,0.00010649,2]
[348446397,1736531460790,-1796.24,0.00010649,2]
[348446398,1736531460800,-385.84514507,0.00010649,2]
[348446399,1736531461139,-1652.06485493,0.00010649,2]
[348446400,1736531461150,-1100.42168808,0.00010649,2]
[348446401,1736531461163,-184.19831192,0.00010649,2]
[348446402,1736531461173,-446.72168808,0.00010649,2]
[348446403,1736531461185,-114.71831192,0.00010649,2]
[348446404,1736531461194,-538.05,0.00010649,2]
[348446405,1736531461204,-765.06,0.00010649,2]
[348446406,1736531461214,-907.28,0.00010649,2]
[348446407,1736531461223,-500.0,0.00010649,2]
[348446408,1736531461234,-2002.94,0.00010649,2]
[348446409,1736531461244,-642.17,0.00010649,2]
[348446410,1736531461253,-870.31,0.00010649,2]
[348446411,1736531461263,-834.05,0.00010649,2]
[348446412,1736531461273,-500.0,0.00010649,2]
[348446413,1736531461282,-512.32,0.00010649,2]
[348446414,1736531461291,-500.0,0.00010649,2]
[348446415,1736531461301,-513.36,0.0001065,2]
[348446416,1736531461311,-500.0,0.0001065,2]
[348446417,1736531461321,-500.0,0.0001065,2]
[348446418,1736531461331,-500.0,0.0001065,2]
[348446419,1736531461342,-500.0,0.0001065,2]
[348446420,1736531461353,-500.0,0.0001065,2]
[348446421,1736531461363,-500.0,0.0001065,2]
[348446422,1736531461372,-506.41,0.0001065,2]
[348446423,1736531461382,-500.0,0.0001065,2]
[348446424,1736531461392,-500.0,0.0001065,2]
[348446425,1736531461403,-275.65752934,0.0001065,2]
[348446426,1736531461413,-560.88,0.0001065,2]
[348446427,1736531461424,-500.0,0.0001065,2]
[348446428,1736531461435,-581.0698869,0.0001065,2]
[348446429,1736531461448,-71.2001131,0.0001065,2]
[348446430,1736531461460,-258.7448703,0.0001065,2]
[348446431,1736531461896,-358.43885018,9.279e-05,2]
[348446432,1736531461908,-141.56114982,9.279e-05,2]
[348446433,1736531461921,-247.32955134,9.28e-05,2]
[348446434,1736531461935,-252.67044866,9.28e-05,2]
[348446435,1736531461945,-241.2551297,0.0001065,2]
[348446436,1736531461955,-610.26,0.0001065,2]
[348446437,1736531461966,-500.0,0.0001065,2]
[348446438,1736531461976,-500.0,0.0001065,2]
[348446439,1736531461987,-633.15,0.0001065,2]
[348446440,1736531461999,-626.65,0.0001065,2]
[348446441,1736531462008,-511.06,0.0001065,2]
[348446442,1736531462018,-624.32172488,0.0001065,2]
[348446443,1736531462028,-500.0,0.0001065,2]
[348446444,1736531462039,-527.06,0.0001065,2]
[348446445,1736531462049,-500.0,0.0001065,2]
[348446446,1736531462060,-440.59967863,0.0001065,2]
[348446447,1736531462070,-500.0,0.0001065,2]
[348446448,1736531462081,-500.0,0.0001065,2]
[348446449,1736531462091,-500.0,0.0001065,2]
[348446450,1736531462101,-500.0,0.0001065,2]
[348446451,1736531462111,-547.03,0.0001065,2]
[348446452,1736531462121,-737.71,0.0001065,2]
[348446453,1736531462131,-500.0,0.0001065,2]
[348446454,1736531462142,-500.0,0.0001065,2]
[348446455,1736531462152,-500.0,0.0001065,2]
[348446456,1736531462162,-500.0,0.0001065,2]
[348446457,1736531462172,-500.0,0.0001065,2]
[348446458,1736531462182,-1064.59,0.0001065,2]
[348446459,1736531462192,-540.23,0.0001065,2]
[348446460,1736531462203,-500.0,0.0001065,2]
[348446461,1736531462214,-523.12,0.0001065,2]
[348446462,1736531462224,-603.1,0.0001065,2]
[348446463,1736531462241,-500.0,0.0001065,2]
[348446464,1736531462250,-638.1,0.0001065,2]
[348446465,1736531462261,-672.58,0.0001065,2]
[348446466,1736531462272,-591.76,0.0001065,2]
[348446467,1736531462283,-551.48,0.0001065,2]
[348446468,1736531462299,-1835.95,0.0001065,2]
[348446469,1736531462309,-4517.54,0.0001065,2]
[348446470,1736531462319,-500.0,0.0001065,2]
[348446471,1736531462331,-500.0,0.0001065,2]
[348446472,1736531462341,-556.4,0.0001065,2]
[348446473,1736531462351,-588.18,0.0001065,2]
[348446474,1736531462362,-1590.45,0.0001065,2]
[348446475,1736531462372,-500.0,0.0001065,2]
[348446476,1736531462382,-292.32016176,0.0001065,2]
[348446477,1736531462400,-389.76,0.0001065,2]